fUST/lending_fUST_20240427
["ID","MTS","AMOUNT","RATE_DAILY","PERIOD"]
[323666326,1714151477594,-1037.96,0.00045479,7]
[323666327,1714151477606,-1068.89,0.00045479,7]
[323666328,1714151477616,-538.99,0.00045479,7]
[323666329,1714151477626,-701.69,0.00045479,7]
[323666330,1714151477636,-3882.5,0.00045479,7]
[323666331,1714151477647,-1351.34,0.00045479,7]
[323666332,1714151477658,-1308.8,0.00045479,7]
[323666333,1714151477668,-4129.12,0.00045479,7]
[323666334,1714151477678,-500.0,0.00045479,7]
[323666335,1714151477688,-500.0,0.00045479,7]
[323666336,1714151477698,-1568.78,0.00045479,7]
[323666337,1714151477708,-624.57,0.00045479,7]
[323666338,1714151477720,-9906.46,0.00045479,7]
[323666339,1714151477734,-707.43,0.00045479,7]
[323666340,1714151477745,-500.0,0.00045479,7]
[323666341,1714151477755,-1463.03,0.00045479,7]
[323666342,1714151477765,-500.0,0.00045479,7]
[323666343,1714151477776,-8370.61,0.00045479,7]
[323666344,1714151477786,-652.39,0.00045479,7]
[323666345,1714151477795,-1240.5,0.00045479,7]
[323666346,1714151477805,-500.0,0.00045479,7]
[323666347,1714151477815,-500.0,0.00045479,7]
[323666348,1714151477826,-612.68,0.00045479,7]
[323666349,1714151477837,-735.34,0.00045479,7]
[323666350,1714151477847,-577.88,0.00045479,7]
[323666351,1714151477857,-10267.73,0.00045479,7]
[323666352,1714151477868,-12883.84,0.00045479,7]
[323666353,1714151477878,-1671.4,0.00045479,7]
[323666354,1714151477889,-500.0,0.00045479,7]
[323666355,1714151477900,-500.0,0.00045479,2]
[323666356,1714151477910,-500.0,0.00045479,7]
[323666357,1714151477921,-156.65,0.00045723,35]
[323666358,1714151477930,-150.5,0.00045723,35]
[323666359,1714151477940,-150.5,0.00045733,35]
[323666360,1714151477950,-165.53,0.00045733,35]
[323666361,1714151477959,-150.5,0.00045733,35]
[323666362,1714151477969,-150.5,0.00045743,35]
[323666363,1714151477980,-150.5,0.00045743,35]
[323666364,1714151477989,-150.5,0.00045743,35]
[323666365,1714151477998,-843.21,0.00045753,7]
[323666366,1714151478007,-1531.05,0.00045753,120]
[323666367,1714151478018,-1205.42,0.00045753,7]
[323666368,1714151478029,-500.0,0.00045753,7]
[323666369,1714151478038,-500.0,0.00045753,7]
[323666370,1714151478047,-500.0,0.00045753,7]
[323666371,1714151478056,-455.82794244,0.00045753,7]
[323666372,1714151478066,-273.59162721,0.00045753,7]
[323666373,1714151478076,-1843.11,0.00045753,7]
[323666374,1714151478084,-1315.36,0.00045753,7]
[323666375,1714151478093,-500.0,0.00045753,7]
[323666376,1714151478105,-1968.72,0.00045753,7]
[323666377,1714151478115,-1326.46,0.00045753,7]
[323666378,1714151478126,-500.0,0.00045753,7]
[323666379,1714151478135,-500.0,0.00045753,7]
[323666380,1714151478145,-1037.26,0.00045753,7]
[323666381,1714151478154,-1749.02,0.00045753,7]
[323666382,1714151478163,-1398.14,0.00045753,7]
[323666383,1714151478172,-500.0,0.00045753,7]
[323666384,1714151478182,-500.0,0.00045753,7]
[323666385,1714151478192,-547.54,0.00045753,7]
[323666386,1714151478201,-2123.78,0.00045753,7]
[323666387,1714151478210,-2561.54,0.00045753,7]
[323666388,1714151478219,-174.46578585,0.00045753,7]
[323666389,1714151478229,-1529.74,0.00045753,7]
[323666390,1714151478239,-1087.6,0.00045753,7]
[323666391,1714151478249,-200.0,0.00045753,30]
[323666392,1714151478258,-1398.22,0.00045753,7]
[323666393,1714151478267,-1748.44,0.00045753,7]
[323666394,1714151478276,-500.0,0.00045753,7]
[323666395,1714151478285,-5209.22,0.00045753,7]
[323666396,1714151478295,-1379.93,0.00045753,7]
[323666397,1714151478305,-500.0,0.00045753,7]
[323666398,1714151478314,-835.38,0.00045753,7]
[323666399,1714151478323,-728.58,0.00045753,7]
[323666400,1714151478332,-704.86,0.00045753,7]
[323666401,1714151478341,-1073.4,0.00045753,7]
[323666402,1714151478351,-500.0,0.00045753,7]
[323666403,1714151478361,-1875.92,0.00045753,7]
[323666404,1714151478371,-747.19,0.00045753,7]
[323666405,1714151478380,-500.0,0.00045753,7]
[323666406,1714151478389,-1963.81,0.00045753,7]
[323666407,1714151478399,-8810.57,0.00045753,7]
[323666408,1714151478408,-1211.86,0.00045753,7]
[323666409,1714151478417,-500.0,0.00045753,7]
[323666410,1714151478427,-1108.5,0.00045753,7]
[323666411,1714151478436,-6049.81,0.00045753,7]
[323666412,1714151478445,-660.06,0.00045753,7]
[323666413,1714151478455,-500.0,0.00045753,7]
[323666414,1714151478465,-4601.83,0.00045753,7]
[323666415,1714151478475,-178.81502615,0.00045753,7]
[323666416,1714151478484,-2642.19,0.00045753,7]
[323666417,1714151478494,-1006.47,0.00045753,7]
[323666418,1714151478504,-1236.95,0.00045753,7]
[323666419,1714151478515,-900.0,0.00045753,7]
[323666420,1714151478524,-500.0,0.00045753,7]
[323666421,1714151478534,-1037.96,0.00045753,7]
[323666422,1714151478544,-1068.89,0.00045753,7]
[323666423,1714151478555,-701.69,0.00045753,7]
[323666424,1714151478565,-538.99,0.00045753,7]
[323666425,1714151478576,-3882.5,0.00045753,7]
[323666426,1714151478586,-1351.34,0.00045753,7]
[323666427,1714151478595,-1308.8,0.00045753,7]
[323666428,1714151478605,-4129.12,0.00045753,7]
[323666429,1714151478616,-500.0,0.00045753,7]
[323666430,1714151478626,-500.0,0.00045753,7]
[323666431,1714151478636,-1568.78,0.00045753,7]
[323666432,1714151478646,-624.57,0.00045753,7]
[323666433,1714151478657,-9906.46,0.00045753,7]
[323666434,1714151478668,-707.43,0.00045753,7]
[323666435,1714151478677,-500.0,0.00045753,7]
[323666436,1714151478686,-1463.03,0.00045753,7]
[323666437,1714151478695,-403.50185303,0.00045753,7]
[323666438,1714151478705,-8370.61,0.00045753,7]
[323666439,1714151478715,-652.39,0.00045753,7]
[323666440,1714151478726,-1240.5,0.00045753,7]
[323666441,1714151478735,-500.0,0.00045753,7]
[323666442,1714151478745,-314.93281189,0.00045753,7]
[323666443,1714151478754,-612.68,0.00045753,7]
[323666444,1714151478764,-735.34,0.00045753,7]
[323666445,1714151478773,-577.88,0.00045753,7]
[323666446,1714151478781,-4706.6181506,0.00045753,7]
[323666447,1714151478915,-5561.1118494,0.00045753,7]
[323666448,1714151478925,-12883.84,0.00045753,7]
[323666449,1714151478935,-509.69479162,0.00045753,7]
[323666450,1714151479282,-225.90709444,0.0003238,4]
[323666451,1714151479292,-671.50357655,0.0003238,4]
[323666452,1714151479302,-250.24642093,0.0003238,4]
[323666453,1714151479313,-1393.22021854,0.00032381,4]
[323666454,1714151479329,-4404.77538874,0.00032381,4]
[323666455,1714151479339,-1454.51,0.00044931,7]
[323666456,1714151479349,-1454.51,0.00045205,7]
[323666457,1714151479358,-1454.51,0.00045479,7]
[323666458,1714151479368,-1161.70520838,0.00045753,7]
[323666459,1714151479377,-500.0,0.00045753,7]
[323666460,1714151479386,-308.78074786,0.00045753,2]
[323666461,1714151479397,-500.0,0.00045753,7]
[323666462,1714151479406,-1454.51,0.00045753,7]
[323666463,1714151479416,-186.21563386,0.000459,4]
[323666464,1714151479425,-843.21,0.00046027,7]
[323666465,1714151479435,-1531.05,0.00046027,120]
[323666466,1714151479443,-500.0,0.00046027,7]
[323666467,1714151479452,-1205.42,0.00046027,7]
[323666468,1714151479463,-508.34617542,0.00046027,7]
[323666469,1714151479472,-502.6489701,0.00046027,7]
[323666470,1714151479481,-1598.73811218,0.00046027,7]
[323666471,1714151631626,5000.0,0.000266,120]
[323666506,1714152062600,300.0,0.00014728,2]
[323666539,1714152631757,-540.05535555,0.00026839,2]
[323666540,1714152631767,-154.86062544,0.0002684,2]
[323666541,1714152631776,-1155.08401901,0.0002684,2]
[323666811,1714152640028,-465.79604725,0.0002684,2]
[323666813,1714152640037,-540.05535555,0.00026841,2]
[323666815,1714152640046,-165.036821,0.00027397,2]
[323666817,1714152640056,-3468.28697152,0.00028796,2]
[323666819,1714152640067,-21431.71302848,0.00028796,2]
[323666821,1714152640076,-166.666666,0.00030014,2]
[323666823,1714152640085,-9729.18169935,0.0003238,2]
[323666825,1714152640099,-155.2231683,0.0003238,4]
[323666828,1714152640108,-409.51989125,0.0003238,4]
[323666830,1714152640117,-162.04590632,0.0003238,4]
[323666832,1714152640128,-27308.39937069,0.0003238,4]
[323666834,1714152640137,-262.23409098,0.0003999,30]
[323666836,1714152640146,-155.69524992,0.00040113,2]
[323666837,1714152640155,-155.69524992,0.00040995,2]
[323666839,1714152640164,-288.46404528,0.00041093,4]
[323666841,1714152640173,-210.56024698,0.00041094,4]
[323666843,1714152640182,-500.0,0.00041095,7]
[323666845,1714152640191,-543.21519696,0.00041095,7]
[323666846,1714152640201,-500.0,0.00041095,7]
[323666847,1714152640211,-501.35708862,0.00041095,7]
[323666848,1714152640220,-500.0,0.00041095,7]
[323666849,1714152640229,-585.59,0.00041095,30]
[323666850,1714152640239,-500.0,0.00041095,7]
[323666851,1714152640248,-500.0,0.00041095,7]
[323666852,1714152640258,-434.06431549,0.00041095,7]
[323666853,1714152640267,-500.0,0.00041095,7]
[323666854,1714152640277,-510.45062169,0.00041095,7]
[323666855,1714152640286,-500.0,0.00041095,7]
[323666856,1714152640296,-500.0,0.00041095,7]
[323666857,1714152640305,-500.0,0.00041095,7]
[323666858,1714152640314,-500.0,0.00041095,7]
[323666859,1714152640324,-515.6002541,0.00041095,7]
[323666860,1714152640333,-500.0,0.00041095,7]
[323666861,1714152640343,-516.47291777,0.00041095,7]
[323666862,1714152640352,-1000.0,0.00041095,7]
[323666863,1714152640361,-500.0,0.00041095,7]
[323666864,1714152640371,-500.0,0.00041095,7]
[323666865,1714152640381,-600.31778888,0.00041095,7]
[323666866,1714152640390,-168.48053585,0.00041095,7]
[323666867,1714152640400,-500.0,0.00041095,7]
[323666868,1714152640411,-500.0,0.00041095,7]
[323666870,1714152640424,-500.0,0.00041095,7]
[323666872,1714152640434,-500.40941395,0.00041095,7]
[323666874,1714152640444,-338.96925512,0.00041095,7]
[323666876,1714152640455,-49.6739981,0.00041095,7]
[323667162,1714152643023,-565.91,0.00041085,3]
[323667164,1714152643032,-452.5298509,0.00041095,7]
[323667166,1714152643041,-505.45807769,0.00041095,7]
[323667168,1714152643050,-500.0,0.00041095,7]
[323667170,1714152643060,-1783.72,0.00041095,7]
[323667173,1714152643069,-500.0,0.00041095,7]
[323667176,1714152643078,-500.0,0.00041095,7]
[323667178,1714152643088,-873.33,0.00041095,7]
[323667180,1714152643098,-500.0,0.00041095,7]
[323667182,1714152643107,-500.0,0.00041095,7]
[323667184,1714152643116,-500.0,0.00041095,7]
[323667186,1714152643125,-500.0,0.00041095,7]
[323667188,1714152643135,-500.0,0.00041095,7]
[323667190,1714152643144,-500.0,0.00041095,7]
[323667192,1714152643153,-500.0,0.00041095,7]
[323667194,1714152643162,-500.0,0.00041095,7]
[323667196,1714152643171,-199.03303208,0.00041095,7]
[323667198,1714152643180,-309.03151396,0.00041095,7]
[323667455,1714152645842,-1001.3942054,0.00040684,2]
[323667457,1714152645851,-154.86062544,0.00041094,4]
[323667459,1714152645860,-723.56563438,0.00041094,4]
[323667461,1714152645870,-190.96848604,0.00041095,7]
[323667463,1714152645879,-500.0,0.00041095,7]
[323667465,1714152645888,-500.0,0.00041095,7]
[323667466,1714152645897,-188.52681513,0.00041095,7]
[323667469,1714152645907,-523.44721829,0.00041095,7]
[323667471,1714152645917,-500.0,0.00041095,7]
[323667475,1714152645928,-500.0,0.00041095,7]
[323667477,1714152645940,-500.0,0.00041095,7]
[323667479,1714152645950,-500.0,0.00041095,7]
[323667483,1714152645960,-154.86062544,0.00041095,7]
[323667486,1714152645971,-500.0,0.00041095,7]
[323667488,1714152645981,-500.0,0.00041095,7]
[323667490,1714152645991,-1872.6,0.00041095,7]
[323667492,1714152646000,-500.0,0.00041095,120]
[323667494,1714152646010,-200.0,0.00041095,30]
[323667496,1714152646018,-500.0,0.00041095,7]
[323667498,1714152646027,-500.0,0.00041095,2]
[323667500,1714152646036,-500.0,0.00041095,7]
[323667502,1714152646045,-500.0,0.00041095,7]
[323667504,1714152646053,-500.0,0.00041095,7]
[323667506,1714152646062,-500.0,0.00041095,7]
[323667508,1714152646071,-500.0,0.00041095,7]
[323667510,1714152646080,-375.68677468,0.00041095,7]
[323667512,1714152646089,-1575.98,0.00041095,7]
[323667514,1714152646098,-500.0,0.00041095,7]
[323667516,1714152646107,-500.0,0.00041095,7]
[323667518,1714152646116,-500.0,0.00041095,7]
[323667520,1714152646125,-500.0,0.00041095,7]
[323667522,1714152646134,-532.36,0.00041095,7]
[323667524,1714152646143,-500.0,0.00041095,7]
[323667526,1714152646152,-545.5534714,0.00041095,7]
[323667528,1714152646161,-500.0,0.00041095,7]
[323667530,1714152646170,-500.0,0.00041095,7]
[323667531,1714152646179,-410.07017119,0.00041095,7]
[323667533,1714152646188,-500.0,0.00041095,7]
[323667535,1714152646199,-500.0,0.00041095,7]
[323667537,1714152646208,-500.0,0.00041095,7]
[323667539,1714152646216,-500.0,0.00041095,7]
[323667541,1714152646226,-500.0,0.00041095,7]
[323667543,1714152646235,-640.39,0.00041095,7]
[323667545,1714152646244,-318.31012775,0.00041095,7]
[323667547,1714152646254,-500.0,0.00041095,7]
[323667549,1714152646263,-500.0,0.00041095,7]
[323667551,1714152646272,-500.0,0.00041095,7]
[323667553,1714152646281,-500.0,0.00041095,7]
[323667555,1714152646290,-500.0,0.00041095,7]
[323667557,1714152646299,-500.0,0.00041095,7]
[323667559,1714152646308,-500.0,0.00041095,7]
[323667561,1714152646317,-500.0,0.00041095,7]
[323667563,1714152646327,-530.95,0.00041095,7]
[323667565,1714152646336,-501.50716194,0.00041095,7]
[323667567,1714152646345,-500.0,0.00041095,7]
[323667569,1714152646355,-500.0,0.00041095,7]
[323667571,1714152646364,-501.3942054,0.00041095,2]
[323667573,1714152646375,-500.0,0.00041095,7]
[323667575,1714152646384,-500.0,0.00041095,7]
[323667577,1714152646393,-500.0,0.00041095,7]
[323667579,1714152646401,-507.96774715,0.00041095,7]
[323667581,1714152646410,-500.0,0.00041095,7]
[323667583,1714152646420,-500.0,0.00041095,7]
[323667585,1714152646430,-375.53188183,0.00041095,7]
[323667587,1714152646441,-500.0,0.00041095,7]
[323667589,1714152646449,-500.0,0.00041095,7]
[323667591,1714152646459,-503.35568604,0.00041095,7]
[323667593,1714152646467,-1540.21,0.00041095,7]
[323667594,1714152646477,-1032.28,0.00041095,7]
[323667596,1714152646486,-500.0,0.00041095,7]
[323667598,1714152646494,-500.0,0.00041095,7]
[323667600,1714152646504,-500.0,0.00041095,7]
[323667602,1714152646512,-500.81663805,0.00041095,7]
[323667604,1714152646524,-500.0,0.00041095,7]
[323667606,1714152646533,-500.0,0.00041095,7]
[323667608,1714152646542,-507.46606048,0.00041095,7]
[323667610,1714152646551,-500.0,0.00041095,7]
[323667612,1714152646559,-500.0,0.00041095,7]
[323667614,1714152646568,-500.0,0.00041095,7]
[323667616,1714152646577,-500.0,0.00041095,7]
[323667618,1714152646586,-500.0,0.00041095,7]
[323667620,1714152646596,-503.12343066,0.00041095,7]
[323667622,1714152646605,-500.0,0.00041095,7]
[323667624,1714152646614,-500.0,0.00041095,7]
[323667626,1714152646623,-500.0,0.00041095,7]
[323667628,1714152646632,-500.0,0.00041095,7]
[323667630,1714152646641,-500.0,0.00041095,7]
[323667632,1714152646650,-500.73072675,0.00041095,7]
[323667649,1714152646796,-500.0,0.00041095,7]
[323667651,1714152646806,-500.0,0.00041095,7]
[323667653,1714152646815,-2202.64,0.00041095,7]
[323667655,1714152646824,-500.0,0.00041095,7]
[323667657,1714152646833,-500.0,0.00041095,7]
[323667658,1714152646842,-782.49,0.00041095,7]
[323667661,1714152646852,-500.0,0.00041095,7]
[323667662,1714152646861,-500.0,0.00041095,7]
[323667665,1714152646870,-500.0,0.00041095,7]
[323667667,1714152646879,-500.0,0.00041095,7]
[323667668,1714152646888,-500.0,0.00041095,7]
[323667670,1714152646897,-1512.45,0.00041095,7]
[323667672,1714152646906,-500.0,0.00041095,7]
[323667674,1714152646915,-500.0,0.00041095,7]
[323667675,1714152646924,-500.0,0.00041095,7]
[323667676,1714152646933,-408.75168695,0.00041095,7]
[323667677,1714152646943,-502.69202898,0.00041095,7]
[323667678,1714152646952,-500.0,0.00041095,7]
[323667679,1714152646961,-282.55825108,0.00041095,7]
[323667680,1714152646970,-500.0,0.00041095,7]
[323667681,1714152646979,-500.0,0.00041095,7]
[323667683,1714152646987,-1150.46,0.00041095,7]
[323667685,1714152646996,-500.0,0.00041095,7]
[323667687,1714152647005,-500.0,0.00041095,7]
[323667689,1714152647014,-435.28993883,0.00041095,7]
[323667691,1714152647023,-500.0,0.00041095,7]
[323667693,1714152647032,-500.92465033,0.00041095,7]
[323667695,1714152647041,-500.0,0.00041095,7]
[323667697,1714152647050,-500.0,0.00041095,7]
[323667699,1714152647059,-500.0,0.00041095,7]
[323667701,1714152647068,-500.0,0.00041095,7]
[323667703,1714152647078,-501.69175509,0.00041095,7]
[323667705,1714152647087,-502.95818122,0.00041095,7]
[323667707,1714152647096,-419.42335667,0.00041095,7]
[323667709,1714152647105,-500.0,0.00041095,7]
[323667711,1714152647114,-500.0,0.00041095,7]
[323667713,1714152647123,-500.23618176,0.00041095,7]
[323667716,1714152647132,-500.0,0.00041095,7]
[323667718,1714152647142,-1302.3,0.00041095,7]
[323667720,1714152647151,-500.0,0.00041095,7]
[323667722,1714152647160,-500.0,0.00041095,7]
[323667724,1714152647169,-500.0,0.00041095,7]
[323667726,1714152647178,-500.0,0.00041095,7]
[323667728,1714152647187,-500.0,0.00041095,7]
[323667729,1714152647197,-500.0,0.00041095,7]
[323667732,1714152647206,-502.74594747,0.00041095,7]
[323667734,1714152647215,-500.0,0.00041095,7]
[323667736,1714152647225,-500.0,0.00041095,7]
[323667737,1714152647234,-500.0,0.00041095,7]
[323667740,1714152647243,-500.0,0.00041095,7]
[323667742,1714152647252,-500.0,0.00041095,7]
[323667743,1714152647262,-500.0,0.00041095,7]
[323667745,1714152647271,-500.0,0.00041095,7]
[323667747,1714152647280,-500.0,0.00041095,7]
[323667750,1714152647289,-422.40414629,0.00041095,7]
[323667752,1714152647298,-500.0,0.00041095,7]
[323667754,1714152647308,-500.0,0.00041095,7]
[323667756,1714152647318,-500.0,0.00041095,7]
[323667758,1714152647327,-500.0,0.00041095,7]
[323667759,1714152647336,-500.0,0.00041095,7]
[323667762,1714152647346,-500.0,0.00041095,7]
[323667764,1714152647355,-500.0,0.00041095,7]
[323667765,1714152647364,-500.0,0.00041095,7]
[323667768,1714152647374,-295.4066986,0.00041095,7]
[323667770,1714152647382,-500.0,0.00041095,7]
[323667772,1714152647393,-970.62,0.00041095,7]
[323667773,1714152647402,-500.0,0.00041095,7]
[323667776,1714152647415,-500.0,0.00041095,7]
[323667777,1714152647426,-500.0,0.00041095,7]
[323667779,1714152647436,-500.0,0.00041095,7]
[323667782,1714152647446,-500.0,0.00041095,7]
[323667784,1714152647455,-564.20074265,0.00041095,7]
[323667786,1714152647467,-500.0,0.00041095,7]
[323667787,1714152647476,-500.15840844,0.00041095,7]
[323667789,1714152647485,-500.0,0.00041095,7]
[323667791,1714152647494,-500.0,0.00041095,7]
[323667794,1714152647503,-305.55681669,0.00041095,7]
[323667796,1714152647514,-500.0,0.00041095,7]
[323667798,1714152647523,-500.0,0.00041095,7]
[323667799,1714152647532,-3757.78,0.00041095,7]
[323667802,1714152647542,-2476.61,0.00041095,7]
[323667803,1714152647551,-500.0,0.00041095,7]
[323667805,1714152647559,-500.0,0.00041095,7]
[323667807,1714152647568,-500.0,0.00041095,7]
[323667809,1714152647577,-500.0,0.00041095,7]
[323667811,1714152647587,-500.0,0.00041095,7]
[323667813,1714152647595,-500.18404966,0.00041095,7]
[323667815,1714152647604,-500.0,0.00041095,7]
[323667817,1714152647614,-500.0,0.00041095,7]
[323667819,1714152647623,-500.0,0.00041095,7]
[323667821,1714152647631,-266.07314602,0.00041095,7]
[323667823,1714152647640,-500.23202442,0.00041095,7]
[323667825,1714152647649,-2092.65,0.00041095,7]
[323667827,1714152647658,-228.69075708,0.00041095,7]
[323667829,1714152647667,-500.0,0.00041095,7]
[323667831,1714152647676,-5449.32,0.00041095,7]
[323667833,1714152647686,-514.47358055,0.00041095,7]
[323667835,1714152647696,-500.0,0.00041095,7]
[323667837,1714152647705,-500.0,0.00041095,7]
[323667840,1714152647714,-500.0,0.00041095,7]
[323667842,1714152647724,-351.40394889,0.00041095,7]
[323668221,1714153131279,-698.90539721,0.00032538,4]
[323668222,1714153131299,-1187.86193294,0.00032539,4]
[323668223,1714153131319,-154.84515485,0.00032539,4]
[323668224,1714153131343,-3126.03540035,0.00032542,120]
[323668225,1714153131363,-154.84515485,0.00032874,4]
[323668226,1714153131383,-166.666666,0.00039556,2]
[323668227,1714153131405,-4699.8402938,0.00040079,2]
[323668265,1714153536982,-181.035986,0.00027397,2]
[323668266,1714153537005,-155.0,0.00030603,60]
[323668267,1714153537025,-154.9,0.00030603,90]
[323668268,1714153537044,-166.666666,0.0003894,2]
[323668269,1714153537064,-8625.76378545,0.00039873,2]
[323668277,1714153592090,961.82751937,0.00019178,2]
[323668278,1714153592133,961.82751937,0.00019178,2]
[323668279,1714153592170,961.82751937,0.00019178,2]
[323668280,1714153592207,961.82751937,0.00019178,2]
[323668281,1714153592246,961.82751937,0.00019178,2]
[323668282,1714153592286,961.82751937,0.00019178,2]
[323668283,1714153592322,961.82751937,0.00019178,2]
[323668284,1714153592359,961.82751937,0.00019178,2]
[323668285,1714153592394,961.82751937,0.00019178,2]
[323668286,1714153592430,961.82751937,0.00019178,2]
[323668287,1714153592468,961.82751937,0.00019178,2]
[323668288,1714153592504,961.82751937,0.00019178,2]
[323668289,1714153592543,961.82751937,0.00019178,2]
[323668290,1714153592582,961.82751937,0.00019178,2]
[323668291,1714153592619,961.82751937,0.00019178,2]
[323668292,1714153592656,961.82751937,0.00019178,2]
[323668293,1714153592694,961.82751937,0.00019178,2]
[323668294,1714153592844,961.82751937,0.00019178,2]
[323668295,1714153592881,961.82751937,0.00019178,2]
[323668296,1714153592918,961.82751937,0.00019178,2]
[323668297,1714153592955,961.82751937,0.00019178,2]
[323668298,1714153593117,961.82751937,0.00019178,2]
[323668299,1714153593153,961.82751937,0.00019178,2]
[323668300,1714153593191,961.82751937,0.00019178,2]
[323668301,1714153593229,961.82751937,0.00019178,2]
[323668302,1714153593266,961.82751937,0.00019178,2]
[323668303,1714153593304,961.82751937,0.00019178,2]
[323668304,1714153593345,961.82751937,0.00019178,2]
[323668305,1714153593381,961.82751937,0.00019178,2]
[323668306,1714153593422,419.51584573,0.00019178,2]
[323668469,1714153838219,-1200.76089313,0.00027297,2]
[323668471,1714153838229,-353.609681,0.00039772,2]
[323668473,1714153838238,-678.7023803,0.00039872,31]
[323668475,1714153838249,-678.7023803,0.00039872,31]
[323668477,1714153838259,-678.7023803,0.00039872,31]
[323668479,1714153838268,-678.7023803,0.00039872,31]
[323668481,1714153838277,-678.7023803,0.00039872,31]
[323668483,1714153838286,-678.7023803,0.00039872,31]
[323668485,1714153838295,-678.7023803,0.00039872,31]
[323668487,1714153838304,-678.7023803,0.00039872,31]
[323668489,1714153838314,-678.7023803,0.00039872,31]
[323668491,1714153838324,-678.7023803,0.00039872,31]
[323668493,1714153838334,-678.7023803,0.00039872,31]
[323668495,1714153838343,-678.7023803,0.00039872,31]
[323668497,1714153838351,-678.7023803,0.00039872,31]
[323668499,1714153838361,-678.7023803,0.00039872,31]
[323668501,1714153838370,-678.7023803,0.00039872,31]
[323668503,1714153838379,-678.7023803,0.00039872,31]
[323668505,1714153838388,-678.7023803,0.00039872,31]
[323668506,1714153838397,-678.7023803,0.00039872,31]
[323668509,1714153838407,-678.7023803,0.00039872,31]
[323668510,1714153838418,-678.7023803,0.00039872,31]
[323668512,1714153838428,-678.7023803,0.00039872,31]
[323668514,1714153838438,-678.7023803,0.00039872,31]
[323668515,1714153838448,-678.7023803,0.00039872,31]
[323668517,1714153838458,-678.7023803,0.00039872,31]
[323668519,1714153838468,-678.7023803,0.00039872,31]
[323668521,1714153838477,-678.7023803,0.00039872,31]
[323668523,1714153838486,-678.7023803,0.00039872,31]
[323668525,1714153838498,-678.7023803,0.00039872,31]
[323668527,1714153838509,-678.7023803,0.00039872,31]
[323668529,1714153838519,-678.7023803,0.00039872,31]
[323668531,1714153838529,-678.7023803,0.00039872,31]
[323668533,1714153838539,-678.7023803,0.00039872,31]
[323668535,1714153838549,-678.7023803,0.00039872,31]
[323668537,1714153838559,-678.7023803,0.00039872,31]
[323668539,1714153838568,-678.7023803,0.00039872,31]
[323668541,1714153838579,-678.7023803,0.00039872,31]
[323668543,1714153838589,-678.7023803,0.00039872,31]
[323668545,1714153838598,-678.7023803,0.00039872,31]
[323668547,1714153838608,-678.7023803,0.00039872,31]
[323668564,1714153838779,-678.7023803,0.00039872,31]
[323668566,1714153838790,-678.7023803,0.00039872,31]
[323668568,1714153838800,-678.7023803,0.00039872,31]
[323668570,1714153838810,-678.7023803,0.00039872,31]
[323668572,1714153838821,-678.7023803,0.00039872,31]
[323668574,1714153838831,-678.7023803,0.00039872,31]
[323668576,1714153838841,-678.7023803,0.00039872,31]
[323668578,1714153838852,-678.7023803,0.00039872,31]
[323668580,1714153838863,-678.7023803,0.00039872,31]
[323668582,1714153838874,-678.7023803,0.00039872,31]
[323668584,1714153838884,-678.7023803,0.00039872,31]
[323668586,1714153838894,-678.7023803,0.00039872,31]
[323668588,1714153838904,-678.7023803,0.00039872,31]
[323668590,1714153838917,-678.7023803,0.00039872,31]
[323668592,1714153838927,-678.7023803,0.00039872,31]